fUST/lending_fUST_20250929
["ID","MTS","AMOUNT","RATE_DAILY","PERIOD"]
[388414728,1759161057144,-554.51,0.00024588,2]
[388414729,1759161057153,-437.28802953,0.00024588,2]
[388414730,1759161057162,-480.0,0.00024588,2]
[388414731,1759161057172,-480.0,0.00024588,2]
[388414732,1759161057181,-480.0,0.00024588,2]
[388414733,1759161057190,-480.0,0.00024588,2]
[388414734,1759161057200,-729.58,0.00024588,2]
[388414735,1759161057209,-671.93,0.00024588,2]
[388414736,1759161057219,-596.77,0.00024588,2]
[388414737,1759161057228,-544.63,0.00024588,2]
[388414738,1759161057238,-480.0,0.00024588,2]
[388414739,1759161057248,-640.8,0.00024588,2]
[388414740,1759161057259,-480.0,0.00024588,2]
[388414741,1759161057269,-480.0,0.00024588,2]
[388414742,1759161057279,-480.0,0.00024588,2]
[388414743,1759161057288,-480.0,0.00024588,2]
[388414744,1759161057297,-480.0,0.00024588,2]
[388414745,1759161057307,-894.23,0.00024588,2]
[388414746,1759161057316,-496.23,0.00024588,2]
[388414747,1759161057324,-480.0,0.00024588,2]
[388414748,1759161057333,-480.0,0.00024588,2]
[388414749,1759161057342,-480.0,0.00024588,2]
[388414750,1759161057351,-340.62037478,0.00024588,2]
[388414751,1759161057360,-480.0,0.00024588,2]
[388414752,1759161057369,-480.0,0.00024588,2]
[388414753,1759161057378,-480.0,0.00024588,2]
[388414754,1759161057387,-480.0,0.0002459,2]
[388414755,1759161057396,-480.0,0.0002459,2]
[388414756,1759161057405,-480.0,0.0002459,2]
[388414757,1759161057414,-480.0,0.0002459,2]
[388414758,1759161057422,-480.0,0.0002459,2]
[388414759,1759161057431,-667.18,0.0002459,2]
[388414760,1759161057440,-480.0,0.0002459,2]
[388414761,1759161057449,-3432.47,0.0002459,2]
[388414762,1759161057458,-1026.99,0.0002459,2]
[388414763,1759161057467,-508.46,0.0002459,2]
[388414764,1759161057476,-1286.89,0.0002459,2]
[388414765,1759161057486,-1219.17,0.0002459,2]
[388414766,1759161057496,-2486.31,0.0002459,2]
[388414767,1759161057506,-1367.48,0.0002459,2]
[388414768,1759161057516,-480.0,0.0002459,2]
[388414769,1759161057525,-174.87498796,0.0002459,2]
[388414770,1759161057535,-631.93,0.0002459,2]
[388414771,1759161057544,-480.0,0.0002459,2]
[388414772,1759161057553,-2567.53,0.0002459,2]
[388414773,1759161057563,-759.37,0.0002459,2]
[388414774,1759161057572,-631.86,0.0002459,2]
[388414775,1759161057582,-1745.76,0.0002459,2]
[388414776,1759161057592,-3016.28,0.0002459,2]
[388414777,1759161057602,-727.88,0.0002459,2]
[388414778,1759161057611,-813.47,0.0002459,2]
[388414779,1759161057620,-1008.07,0.0002459,2]
[388414780,1759161057630,-591.19,0.0002459,2]
[388414781,1759161057640,-151.0,0.0002459,7]
[388414782,1759161057650,-503.14,0.0002459,2]
[388414783,1759161057659,-1909.43,0.0002459,2]
[388414784,1759161057668,-151.0,0.0002459,7]
[388414785,1759161057678,-151.0,0.0002459,7]
[388414786,1759161057687,-151.0,0.0002459,7]
[388414787,1759161057696,-734.72,0.0002459,2]
[388414788,1759161057707,-151.0,0.0002459,7]
[388414789,1759161057716,-151.0,0.0002459,7]
[388414790,1759161057726,-2636.35,0.0002459,2]
[388414791,1759161057737,-770.78,0.0002459,2]
[388414792,1759161057746,-692.37,0.0002459,2]
[388414793,1759161057756,-653.76,0.0002459,2]
[388414794,1759161057767,-11624.81,0.0002459,2]
[388414795,1759161057777,-480.0,0.0002459,2]
[388414796,1759161057786,-2666.6,0.0002459,2]
[388414797,1759161057796,-157.229,0.00024592,2]
[388414798,1759161057805,-480.0,0.00024592,2]
[388414799,1759161057814,-480.0,0.00024592,2]
[388414800,1759161057823,-480.0,0.00024592,2]
[388414801,1759161057833,-573.79,0.00024592,2]
[388414802,1759161057842,-480.0,0.00024592,2]
[388414803,1759161057851,-151.0,0.00024592,7]
[388414804,1759161057860,-480.0,0.00024592,2]
[388414805,1759161057869,-480.0,0.00024592,2]
[388414806,1759161057878,-594.35,0.00024592,2]
[388414807,1759161057887,-151.0,0.00024592,7]
[388414808,1759161057896,-151.0,0.00024592,7]
[388414809,1759161057905,-151.0,0.00024592,7]
[388414810,1759161057915,-151.0,0.00024592,7]
[388414811,1759161057923,-217.927928,0.00024592,7]
[388414812,1759161057933,-151.0,0.00024592,7]
[388414813,1759161057942,-480.0,0.00024592,2]
[388414814,1759161057952,-480.0,0.00024592,2]
[388414815,1759161057961,-151.0,0.00024592,7]
[388414816,1759161057970,-151.0,0.00024592,7]
[388414817,1759161057978,-151.0,0.00024592,7]
[388414818,1759161057988,-151.0,0.00024592,7]
[388414819,1759161057997,-151.0,0.00024592,7]
[388414820,1759161058008,-634.32,0.00024592,2]
[388414821,1759161058017,-547.3,0.00024592,2]
[388414822,1759161058027,-151.0,0.00024592,7]
[388414823,1759161058036,-151.0,0.00024592,7]
[388414824,1759161058045,-185.810662,0.00024592,7]
[388414825,1759161058055,-151.0,0.00024592,7]
[388414826,1759161058068,-185.810662,0.00024592,7]
[388414827,1759161058078,-151.0,0.00024592,7]
[388414828,1759161058087,-185.810662,0.00024592,7]
[388414829,1759161058096,-151.0,0.00024592,7]
[388414830,1759161058107,-185.810662,0.00024592,7]
[388414831,1759161058116,-151.0,0.00024592,7]
[388414832,1759161058125,-151.112309,0.00024592,7]
[388414833,1759161058135,-151.112309,0.00024592,7]
[388414834,1759161058144,-151.0,0.00024592,7]
[388414835,1759161058153,-1428.98,0.00024592,2]
[388414836,1759161058162,-480.0,0.00024592,2]
[388414837,1759161058171,-480.0,0.00024592,2]
[388414838,1759161058180,-480.0,0.00024592,2]
[388414839,1759161058189,-151.112309,0.00024592,7]
[388414840,1759161058198,-151.0,0.00024592,7]
[388414841,1759161058207,-151.112309,0.00024592,7]
[388414842,1759161058216,-151.0,0.00024592,7]
[388414843,1759161058225,-635.14,0.00024592,2]
[388414844,1759161058235,-151.0,0.00024592,7]
[388414845,1759161058244,-682.17,0.00024592,2]
[388414846,1759161058254,-159.398646,0.00024592,7]
[388414847,1759161058265,-151.0,0.00024592,7]
[388414848,1759161058274,-480.0,0.00024592,2]
[388414849,1759161058283,-151.0,0.00024592,7]
[388414850,1759161058292,-151.0,0.00024592,7]
[388414851,1759161058301,-151.0,0.00024592,7]
[388414852,1759161058310,-151.0,0.00024592,7]
[388414853,1759161058319,-740.77,0.00024592,2]
[388414854,1759161058328,-151.0,0.00024592,7]
[388414855,1759161058337,-151.0,0.00024592,7]
[388414856,1759161058346,-151.405696,0.00024592,7]
[388414857,1759161058355,-633.41,0.00024592,2]
[388414858,1759161058364,-534.48,0.00024592,2]
[388414859,1759161058373,-151.0,0.00024592,7]
[388414860,1759161058382,-151.0,0.00024592,7]
[388414861,1759161058391,-151.0,0.00024592,7]
[388414862,1759161058400,-571.16,0.00024592,2]
[388414863,1759161058409,-1481.65,0.00024592,2]
[388414864,1759161058417,-1188.19,0.00024592,2]
[388414865,1759161058427,-46.29667719,0.00024592,7]
[388414866,1759161058953,480.0,0.00023668,2]
[388414867,1759161059071,480.0,0.00023668,2]
[388414868,1759161059264,2878.39805196,0.00023668,2]
[388414869,1759161059358,2121.60194804,0.00023668,2]
[388414870,1759161059434,-743.9,0.00023758,10]
[388414871,1759161059443,-256.1,0.0002377,2]
[388414872,1759161060031,-243.85027892,0.00023762,2]
[388414873,1759161060041,-480.0,0.00023766,2]
[388414874,1759161060051,-0.68,0.0002377,2]
[388414875,1759161060065,-480.0,0.00023872,2]
[388414876,1759161060075,-480.0,0.00023942,2]
[388414877,1759161060084,-838.93,0.00024044,2]
[388414878,1759161060094,-256.78,0.00024044,2]
[388414879,1759161060105,-10000.0,0.00024146,7]
[388414880,1759161060114,-151.0,0.00024146,7]
[388414881,1759161060123,-10000.0,0.00024146,7]
[388414882,1759161060132,-480.0,0.00024216,2]
[388414883,1759161060142,-270.2600528,0.00024216,2]
[388414884,1759161060151,-838.93,0.00024318,2]
[388414885,1759161060160,-256.8,0.00024318,2]
[388414886,1759161060170,-10000.0,0.00024318,7]
[388414887,1759161060179,-151.0,0.00024318,7]
[388414888,1759161060189,-10000.0,0.00024473,7]
[388414889,1759161060198,-151.0,0.00024473,7]
[388414890,1759161060207,-480.0,0.0002449,2]
[388414891,1759161060217,-104.70332281,0.00024592,7]
[388414892,1759161060226,-1097.36,0.00024592,2]
[388414893,1759161060235,-781.970912,0.00024592,7]
[388414894,1759161060244,-151.0,0.00024592,7]
[388414895,1759161060253,-781.970912,0.00024592,7]
[388414896,1759161060264,-501.537853,0.00024592,7]
[388414897,1759161060273,-781.970912,0.00024592,7]
[388414898,1759161060282,-501.537853,0.00024592,7]
[388414899,1759161060291,-781.970912,0.00024592,7]
[388414900,1759161060300,-501.537853,0.00024592,7]
[388414901,1759161060309,-1174.05,0.00024592,2]
[388414902,1759161060318,-501.537853,0.00024592,7]
[388414903,1759161060328,-151.0,0.00024592,7]
[388414904,1759161060337,-151.0,0.00024592,7]
[388414905,1759161060346,-151.0,0.00024592,7]
[388414906,1759161060355,-151.0,0.00024592,7]
[388414907,1759161060364,-151.0,0.00024592,7]
[388414908,1759161060373,-151.0,0.00024592,7]
[388414909,1759161060383,-590.48,0.00024592,2]
[388414910,1759161060391,-151.0,0.00024592,7]
[388414911,1759161060400,-151.0,0.00024592,7]
[388414912,1759161060409,-151.0,0.00024592,7]
[388414913,1759161060418,-151.0,0.00024592,7]
[388414914,1759161060427,-480.0,0.00024592,2]
[388414915,1759161060435,-480.0,0.00024592,2]
[388414916,1759161060444,-515.21,0.00024592,2]
[388414917,1759161060453,-480.0,0.00024592,2]
[388414918,1759161060464,-151.0,0.00024592,7]
[388414919,1759161060473,-769.502463,0.00024592,7]
[388414920,1759161060482,-151.0,0.00024592,7]
[388414921,1759161060491,-769.502463,0.00024592,7]
[388414922,1759161060499,-151.0,0.00024592,7]
[388414923,1759161060509,-769.502463,0.00024592,7]
[388414924,1759161060518,-236.050968,0.00024592,7]
[388414925,1759161060527,-769.502463,0.00024592,7]
[388414926,1759161060536,-236.050968,0.00024592,7]
[388414927,1759161060545,-236.050968,0.00024592,7]
[388414928,1759161060554,-236.050968,0.00024592,7]
[388414929,1759161060563,-151.0,0.00024592,7]
[388414930,1759161060572,-746.562052,0.00024592,7]
[388414931,1759161060581,-151.0,0.00024592,7]
[388414932,1759161060590,-746.562052,0.00024592,7]
[388414933,1759161060617,-746.562052,0.00024592,7]
[388414934,1759161060634,-1389.25,0.00024592,2]
[388414935,1759161060643,-746.562052,0.00024592,7]
[388414936,1759161060652,-690.96,0.00024592,2]
[388414937,1759161060661,-205.71134,0.00024592,7]
[388414938,1759161060670,-205.71134,0.00024592,7]
[388414939,1759161060679,-151.0,0.00024592,7]
[388414940,1759161060687,-205.71134,0.00024592,7]
[388414941,1759161060696,-650.89,0.00024592,2]
[388414942,1759161060705,-151.0,0.00024592,7]
[388414943,1759161060714,-205.71134,0.00024592,7]
[388414944,1759161060723,-151.0,0.00024592,7]
[388414945,1759161060732,-480.0,0.00024592,2]
[388414946,1759161060741,-151.0,0.00024592,7]
[388414947,1759161060751,-151.0,0.00024592,7]
[388414948,1759161060761,-151.0,0.00024592,7]
[388414949,1759161060770,-151.0,0.00024592,7]
[388414950,1759161060780,-678.18,0.00024592,2]
[388414951,1759161060791,-233.87608454,0.00024592,7]
[388414952,1759161060800,-480.0,0.00024592,2]
[388414953,1759161060810,-151.0,0.00024592,7]
[388414954,1759161060819,-154.09379,0.00024592,7]
[388414955,1759161060828,-863.9,0.00024592,2]
[388414956,1759161060838,-631.93,0.00024592,2]
[388414957,1759161060847,-151.0,0.00024592,7]
[388414958,1759161060856,-480.0,0.00024592,2]
[388414959,1759161060866,-709.13,0.00024592,2]
[388414960,1759161060875,-717.3,0.00024592,2]
[388414961,1759161060884,-156.454928,0.00024592,7]
[388414962,1759161060895,-179.070587,0.00024592,7]
[388414963,1759161060904,-480.0,0.00024592,2]
[388414964,1759161060914,-824.18,0.00024592,2]
[388414965,1759161060923,-179.070587,0.00024592,7]
[388414966,1759161060933,-179.070587,0.00024592,7]
[388414967,1759161060942,-179.070587,0.00024592,7]
[388414968,1759161060951,-480.0,0.00024592,2]
[388414969,1759161060960,-870.07,0.00024592,2]
[388414970,1759161060970,-151.0,0.00024592,7]
[388414971,1759161060979,-1128.51,0.00024592,2]
[388414972,1759161060989,-151.0,0.00024592,7]
[388414973,1759161060999,-915.42,0.00024592,2]
[388414974,1759161061009,-923.51,0.00024592,2]
[388414975,1759161061019,-151.0,0.00024592,7]
[388414976,1759161061028,-451.895346,0.00024592,7]
[388414977,1759161061037,-151.0,0.00024592,7]
[388414978,1759161061046,-451.895346,0.00024592,7]
[388414979,1759161061058,-451.895346,0.00024592,7]
[388414980,1759161061075,-451.895346,0.00024592,7]
[388414981,1759161061085,-153.807745,0.00024592,7]
[388414982,1759161061095,-153.807745,0.00024592,7]
[388414983,1759161061107,-724.15,0.00024592,2]
[388414984,1759161061118,-153.807745,0.00024592,7]
[388414985,1759161061128,-153.807745,0.00024592,7]
[388414986,1759161061143,-356.249965,0.00024592,7]
[388414987,1759161061154,-356.249965,0.00024592,7]
[388414988,1759161061163,-356.249965,0.00024592,7]
[388414989,1759161061173,-356.249965,0.00024592,7]
[388414990,1759161061183,-463.19965276,0.00024592,2]
[388414991,1759161061192,-480.0,0.00024592,2]
[388414992,1759161061202,-1090.9,0.00024592,2]
[388414993,1759161061212,-151.0,0.00024592,7]
[388414994,1759161061222,-151.0,0.00024592,7]
[388414995,1759161061231,-480.0,0.00024592,2]
[388414996,1759161061241,-151.0,0.00024592,7]
[388414997,1759161061251,-3622.36,0.00024592,2]
[388414998,1759161061260,-688.96,0.00024592,2]
[388414999,1759161061270,-2540.65,0.00024592,2]
[388415000,1759161061279,-314.876435,0.00024592,7]
[388415001,1759161061288,-314.876435,0.00024592,7]
[388415002,1759161061297,-314.876435,0.00024592,7]
[388415003,1759161061306,-314.876435,0.00024592,7]
[388415004,1759161061316,-151.0,0.00024592,7]
[388415005,1759161061326,-151.0,0.00024592,7]
[388415006,1759161061335,-161.471201,0.00024592,7]
[388415007,1759161061344,-1004.43421429,0.00024592,2]
[388415008,1759161062292,480.0,0.00023668,2]
[388415009,1759161062558,5000.0,0.00023668,2]
[388415010,1759161063316,300.0,0.00023667,2]
[388415011,1759161063699,2098.40805196,0.00023668,2]
[388415012,1759161063803,2901.59194804,0.00023668,2]
[388415013,1759161063978,480.0,0.00023668,2]
[388415014,1759161067371,528.6,0.00023668,2]
[388415015,1759161067901,480.0,0.00023668,2]
[388415016,1759161075776,-480.0,0.00023669,2]
[388415017,1759161077402,-20.0,0.00023669,2]
[388415018,1759161077428,-335.54356992,0.00023669,2]
[388415019,1759161079143,-164.45643008,0.00023669,2]
[388415020,1759161079171,-335.54356992,0.00023669,2]
[388415021,1759161079413,5000.0,0.00023668,2]
[388415022,1759161081651,-260.8400766,0.00023669,2]
[388415023,1759161081679,-239.1599234,0.00023762,2]
[388415024,1759161085387,314.416027,0.00022968,2]
[388415025,1759161086059,295.40202496,0.00023668,2]
[388415026,1759161086180,184.59797504,0.00023668,2]
[388415028,1759161087582,5000.0,0.00023668,2]
[388415029,1759161089838,1015.98,0.00023668,2]
[388415030,1759161098379,1139.57,0.00023668,2]
[388415031,1759161101235,1190.81,0.00023668,2]
[388415032,1759161103673,1469.05202496,0.00023668,2]
[388415033,1759161103778,3530.94797504,0.00023668,2]
[388415034,1759161105375,-300.0,0.00023669,2]
[388415035,1759161107478,-180.0,0.00023669,2]
[388415036,1759161110109,480.0,0.00023668,2]
[388415037,1759161110240,480.0,0.00023668,2]
[388415038,1759161112152,669.06198276,0.00023668,2]
[388415039,1759161117381,526.61,0.00023668,2]
[388415040,1759161121319,568.48,0.00023668,2]
[388415041,1759161128486,3744.9100422,0.00023668,2]
[388415042,1759161128589,1255.0899578,0.00023668,2]
[388415043,1759161129695,2139.6,0.00023668,2]
[388415044,1759161131481,529.28,0.00023668,2]
[388415045,1759161132330,-480.0,0.00023669,2]
[388415046,1759161132431,-535.73,0.00023669,2]
[388415047,1759161132537,-481.46208121,0.00023669,2]
[388415048,1759161132646,-300.0,0.00023761,2]
[388415049,1759161132747,-260.8400766,0.00023762,2]
[388415050,1759161132862,-500.0,0.00023762,2]
[388415051,1759161132969,-500.0,0.00023762,2]
[388415052,1759161133086,-287.14296867,0.00023762,2]
[388415053,1759161133192,-500.0,0.00023762,2]
[388415054,1759161133301,-500.0,0.00023762,2]
[388415055,1759161133410,-500.0,0.00023762,2]
[388415056,1759161133972,-500.0,0.00023762,2]
[388415057,1759161134085,-500.0,0.00023762,2]
[388415058,1759161134193,-500.0,0.00023762,2]
[388415059,1759161134301,-500.0,0.00023762,2]
[388415060,1759161134407,-222.98039435,0.00023762,2]
[388415061,1759161134510,-500.0,0.00023762,2]
[388415062,1759161134611,-480.0,0.00023764,2]
[388415063,1759161134714,-632.8,0.00023764,2]
[388415064,1759161134824,-873.6492113,0.00023764,2]
[388415066,1759161135289,-581.1507887,0.00023764,2]
[388415067,1759161135396,-677.89,0.00023764,2]
[388415068,1759161135504,-480.0,0.00023766,2]
[388415069,1759161135613,-480.0,0.00023766,2]
[388415070,1759161135718,-480.0,0.00023766,2]
[388415071,1759161135831,-546.26,0.00023766,2]
[388415072,1759161136123,-480.0,0.00023766,2]
[388415073,1759161136231,-564.07,0.00023766,2]
[388415074,1759161136335,-512.1784226,0.00023768,2]
[388415075,1759161140246,526.55,0.00023668,2]
[388415076,1759161141869,480.0,0.00023668,2]
[388415077,1759161144682,-245.48,0.00023669,2]
[388415078,1759161148753,2513.56,0.00023668,2]
[388415079,1759161151687,772.26478017,0.00023668,2]
[388415080,1759161157448,1296.25,0.00023668,2]
[388415081,1759161158936,480.0,0.00023668,2]
[388415082,1759161162333,-914.46,0.00023668,2]
[388415083,1759161162445,-234.52,0.00023669,2]
[388415084,1759161162531,-480.0,0.00023669,2]
[388415085,1759161162626,-480.0,0.00023669,2]
[388415086,1759161162728,-480.0,0.00023764,2]
[388415087,1759161162832,-480.0,0.00023766,2]
[388415088,1759161162932,-1200.0,0.00023767,2]
[388415089,1759161163035,-396.9115774,0.00023768,2]
[388415090,1759161163498,-2117.21,0.00023768,2]
[388415091,1759161163607,-480.0,0.00023768,2]
[388415092,1759161163711,-553.85,0.00023768,2]
[388415093,1759161163817,-1726.96,0.00023768,2]
[388415094,1759161172112,-840.06,0.00023668,2]
[388415095,1759161172214,-700.0,0.00023669,2]
[388415096,1759161172334,-697.6,0.00023766,2]
[388415097,1759161172447,-1149.77,0.00023768,2]
[388415098,1759161172559,-1017.94,0.00023768,2]
[388415099,1759161173047,-2134.41,0.00023768,2]
[388415100,1759161173156,-1316.03,0.00023768,2]
[388415101,1759161173641,-4705.95,0.00023768,2]
[388415103,1759161192202,-480.0,0.00023668,2]
[388415104,1759161192313,-492.66,0.00023668,2]
[388415105,1759161192421,-480.0,0.00023668,2]
[388415106,1759161192525,-522.92,0.00023668,2]
[388415107,1759161192630,-1004.26,0.00023669,2]
[388415108,1759161192735,-636.39,0.00023669,2]
[388415109,1759161192847,-692.88,0.00023669,2]
[388415110,1759161195520,-158.45680292,0.00023437,3]
[388415111,1759161197676,5000.0,0.00023401,2]
[388415112,1759161198700,-1.54319708,0.00023437,3]
[388415113,1759161202723,-1591.19,0.00023668,2]
[388415114,1759161202820,-480.0,0.00023668,2]
[388415115,1759161202922,-1381.79,0.00023669,2]
[388415116,1759161203021,-642.31,0.00023764,2]
[388415117,1759161203128,-480.0,0.00023766,2]
[388415118,1759161203231,-364.26725833,0.00023766,2]
[388415119,1759161212159,-990.16,0.00023668,2]
[388415120,1759161212264,-1215.42,0.00023668,2]
[388415121,1759161212366,-480.0,0.00023669,2]
[388415122,1759161212463,-120.89548334,0.00023766,2]
[388415123,1759161212553,-860.26,0.00023766,2]
[388415124,1759161212643,-843.84,0.00023766,2]
[388415125,1759161212730,-474.16681772,0.00023766,2]
[388415126,1759161221517,182.454177,0.00022951,2]
[388415127,1759161222553,-868.31,0.00023668,2]
[388415128,1759161222652,-2196.96,0.00023668,2]
[388415129,1759161232355,-492.07,0.00023668,2]
[388415130,1759161232462,-480.0,0.00023668,2]
[388415131,1759161232567,-3949.28,0.00023669,2]
[388415132,1759161252295,-480.0,0.00023668,2]
[388415133,1759161252397,-480.0,0.00023668,2]
[388415134,1759161252495,-576.98,0.00023668,2]
[388415135,1759161252593,-300.0,0.00023668,2]
[388415136,1759161252685,-526.61,0.00023668,2]
[388415137,1759161252783,-480.0,0.00023668,2]
[388415138,1759161262511,-480.0,0.00023668,2]
[388415139,1759161262612,-4321.64,0.00023669,2]
[388415140,1759161282319,-1028.14,0.00023668,2]
[388415141,1759161282415,-611.72,0.00023668,2]
[388415142,1759161282509,-575.8,0.00023668,2]
[388415143,1759161282598,-542.41,0.00023668,2]
[388415144,1759161282694,-480.0,0.00023669,2]
[388415145,1759161282791,-480.0,0.00023669,2]
[388415146,1759161282888,-1089.42,0.00023669,2]
[388415147,1759161282984,-79.43,0.00023669,2]
[388415148,1759161301788,-300.0,0.00023667,2]
[388415149,1759161301888,-480.0,0.00023668,2]
[388415150,1759161301980,-565.15,0.00023668,2]
[388415151,1759161302067,-480.0,0.00023668,2]
[388415152,1759161302167,-954.34,0.00023668,2]
[388415153,1759161302263,-719.92,0.00023668,2]
[388415154,1759161302360,-725.06,0.00023668,2]
[388415155,1759161302457,-226.17,0.00023669,2]
[388415156,1759161302557,-542.74,0.00023669,2]
[388415157,1759161312737,-300.0,0.00023667,2]
[388415158,1759161312851,-300.0,0.00023667,2]
[388415159,1759161317902,5000.0,0.00023667,2]
[388415160,1759161333142,219.71,0.000233,2]
[388415161,1759161351976,1114.35029958,0.00023664,2]
[388415162,1759161352886,-300.0,0.00023668,2]
[388415163,1759161353003,-480.0,0.00023668,2]
[388415164,1759161353120,-480.0,0.00023668,2]
[388415165,1759161353249,-1200.0,0.00023668,2]
[388415166,1759161353368,-590.94,0.00023668,2]
[388415167,1759161353483,-480.0,0.00023668,2]
[388415168,1759161353596,-1037.81,0.00023668,2]
[388415169,1759161353710,-92.91,0.00023668,2]
[388415170,1759161362548,-5000.0,0.00023667,2]
[388415172,1759161364856,571.2347256,0.00022766,2]
[388415174,1759161372512,-300.0,0.00023667,2]
[388415175,1759161372621,-676.69,0.00023668,2]
[388415176,1759161372728,-480.0,0.00023668,2]
[388415177,1759161372843,-686.81,0.00023668,2]
[388415178,1759161372951,-1261.2,0.00023668,2]
[388415179,1759161373065,-480.0,0.00023668,2]
[388415180,1759161373183,-1056.91,0.00023668,2]
[388415181,1759161382589,-116.79,0.00023668,2]
[388415182,1759161382698,-940.42,0.00023668,2]
[388415183,1759161382812,-3375.72,0.00023668,2]
[388415185,1759161392931,-1134.15,0.00023668,2]
[388415186,1759161393052,-480.0,0.00023668,2]
[388415187,1759161393176,-488.27,0.00023668,2]
[388415188,1759161393302,-2168.49,0.00023668,2]
[388415189,1759161393421,-574.13,0.00023668,2]
[388415190,1759161394222,-600.48506062,0.00023668,2]
[388415191,1759161394345,-500.0,0.00023668,2]
[388415192,1759161394463,-500.0,0.00023668,2]
[388415193,1759161394579,-500.0,0.00023668,2]
[388415194,1759161394695,-500.0,0.00023668,2]
[388415195,1759161394810,-500.0,0.00023668,2]
[388415196,1759161394929,-500.0,0.00023668,2]
[388415197,1759161395049,-500.0,0.00023668,2]
[388415198,1759161395171,-500.0,0.00023668,2]
[388415199,1759161395292,-299.03987876,0.00023668,2]
[388415200,1759161401591,5000.0,0.00023401,2]
[388415201,1759161402945,-480.0,0.00023668,2]
[388415202,1759161403059,-723.32,0.00023668,2]
[388415203,1759161403169,-200.96012124,0.00023668,2]
[388415204,1759161403279,-500.0,0.00023668,2]
[388415205,1759161403391,-500.0,0.00023668,2]
[388415206,1759161403497,-500.0,0.00023668,2]
[388415207,1759161403607,-500.0,0.00023668,2]
[388415208,1759161403715,-500.0,0.00023668,2]
[388415209,1759161403822,-500.0,0.00023668,2]
[388415210,1759161403965,-500.0,0.00023668,2]
[388415211,1759161412770,-480.0,0.00023668,2]
[388415212,1759161412943,-480.0,0.00023668,2]
[388415213,1759161413130,-500.0,0.00023668,2]
[388415214,1759161413309,-500.0,0.00023668,2]
[388415215,1759161413482,-500.0,0.00023668,2]
[388415216,1759161413651,-500.0,0.00023668,2]
[388415217,1759161413819,-500.0,0.00023668,2]
[388415218,1759161413962,-500.0,0.00023668,2]
[388415219,1759161414122,-500.0,0.00023668,2]
[388415220,1759161414281,-500.0,0.00023668,2]
[388415221,1759161422695,-480.0,0.00023668,2]
[388415222,1759161422817,-4134.6,0.00023668,2]
[388415223,1759161423247,-300.0,0.00023667,2]
[388415224,1759161423373,-770.81,0.00023668,2]
[388415225,1759161423512,-500.0,0.00023668,2]
[388415226,1759161423643,-500.0,0.00023668,2]
[388415227,1759161423766,-334.85051063,0.00023668,2]
[388415228,1759161423890,-500.0,0.00023668,2]
[388415229,1759161424010,-300.0,0.00023668,2]
[388415230,1759161424129,-500.0,0.00023668,2]
[388415231,1759161424253,-500.0,0.00023668,2]
[388415232,1759161424368,-13.25,0.00023669,2]
[388415233,1759161424478,-480.0,0.00023669,2]